fUSD/lending_fUSD_20250611
["ID","MTS","AMOUNT","RATE_DAILY","PERIOD"]
[365357388,1749617457376,-490.0,0.00016767,2]
[365357389,1749617457386,-529.95029127,0.00016767,2]
[365357390,1749617457396,-490.0,0.00016767,2]
[365357391,1749617457406,-523.09761345,0.00016767,2]
[365357392,1749617457416,-439.67925254,0.00016767,2]
[365357393,1749617457425,-459.78232441,0.00016767,2]
[365357394,1749617457435,-447.31008101,0.00016767,2]
[365357395,1749617457444,-460.86262835,0.00016767,2]
[365357396,1749617457454,-215.66,0.00016767,2]
[365357397,1749617457463,-490.0,0.00016767,2]
[365357398,1749617457473,-451.70497968,0.00016767,2]
[365357399,1749617457482,-455.74038001,0.00016767,2]
[365357400,1749617457492,-490.0,0.00016767,2]
[365357401,1749617457502,-455.61742666,0.00016767,2]
[365357402,1749617457511,-487.48165676,0.00016767,2]
[365357403,1749617457522,-274.52498541,0.00016767,2]
[365357404,1749617457532,-151.0,0.00016767,2]
[365357405,1749617457542,-490.0,0.00016767,2]
[365357406,1749617457551,-151.0,0.00016767,2]
[365357407,1749617457566,-490.0,0.00016767,2]
[365357408,1749617457576,-460.71054699,0.00016767,2]
[365357409,1749617457585,-462.02219607,0.00016767,2]
[365357410,1749617457595,-240.4309221,0.00016767,2]
[365357411,1749617457604,-473.06501629,0.00016767,2]
[365357412,1749617457614,-470.29519697,0.00016767,2]
[365357413,1749617457623,-151.0,0.00016767,2]
[365357414,1749617457633,-376.92493814,0.00016767,2]
[365357415,1749617457642,-490.0,0.00016767,2]
[365357416,1749617457651,-490.0,0.00016767,2]
[365357417,1749617457661,-490.0,0.00016767,2]
[365357418,1749617457670,-572.96850785,0.00016767,2]
[365357419,1749617457679,-490.0,0.00016767,2]
[365357420,1749617457688,-151.0,0.00016767,2]
[365357421,1749617457698,-490.0,0.00016767,2]
[365357422,1749617457708,-490.0,0.00016767,2]
[365357423,1749617457717,-461.56711572,0.00016767,2]
[365357424,1749617457727,-459.91494795,0.00016767,2]
[365357425,1749617457736,-490.0,0.00016767,2]
[365357426,1749617457745,-473.24484189,0.00016767,2]
[365357427,1749617457755,-154.893192,0.00016767,2]
[365357428,1749617457764,-490.0,0.00016767,2]
[365357429,1749617457774,-521.01,0.00016767,2]
[365357430,1749617457786,-151.0,0.00016767,2]
[365357431,1749617457795,-468.72333312,0.00016767,2]
[365357432,1749617457805,-424.03705948,0.00016767,2]
[365357433,1749617457819,-490.0,0.00016767,2]
[365357434,1749617457828,-479.67900584,0.00016767,2]
[365357435,1749617457837,-450.35405857,0.00016767,2]
[365357436,1749617457847,-457.4318427,0.00016767,2]
[365357437,1749617457857,-471.26247381,0.00016767,2]
[365357438,1749617457867,-490.0,0.00016767,2]
[365357439,1749617457876,-338.13758946,0.00016767,2]
[365357440,1749617457885,-567.99272224,0.00016767,2]
[365357441,1749617457895,-490.0,0.00016767,2]
[365357442,1749617457905,-490.0,0.00016767,2]
[365357443,1749617457915,-810.68,0.00016767,2]
[365357444,1749617457924,-414.44353419,0.00016767,2]
[365357445,1749617457933,-467.38044901,0.00016767,2]
[365357446,1749617457943,-490.0,0.00016767,2]
[365357447,1749617457953,-490.0,0.00016767,2]
[365357448,1749617457963,-471.09936479,0.00016767,2]
[365357449,1749617457972,-490.0,0.00016767,2]
[365357450,1749617457982,-490.0,0.00016767,2]
[365357451,1749617457992,-151.0,0.00016767,2]
[365357452,1749617458001,-334.69319705,0.00016767,2]
[365357453,1749617458011,-459.80358356,0.00016767,2]
[365357454,1749617458020,-490.0,0.00016767,2]
[365357455,1749617458030,-490.0,0.00016767,2]
[365357456,1749617458041,-464.26671489,0.00016767,2]
[365357457,1749617458051,-209.52818155,0.00016767,2]
[365357458,1749617458061,-490.0,0.00016767,2]
[365357459,1749617458071,-463.72081659,0.00016767,2]
[365357460,1749617458081,-490.0,0.00016767,2]
[365357461,1749617458090,-459.96611995,0.00016767,2]
[365357462,1749617458099,-176.406417,0.00016767,2]
[365357463,1749617458109,-456.26384133,0.00016767,2]
[365357464,1749617458119,-490.0,0.00016767,2]
[365357465,1749617458128,-490.0,0.00016767,2]
[365357466,1749617458138,-490.0,0.00016767,2]
[365357467,1749617458148,-490.0,0.00016767,2]
[365357468,1749617458157,-466.10754508,0.00016767,2]
[365357469,1749617458167,-473.37674374,0.00016767,2]
[365357470,1749617458176,-176.406417,0.00016767,2]
[365357471,1749617458186,-477.32017754,0.00016767,2]
[365357472,1749617458196,-490.0,0.00016767,2]
[365357473,1749617458205,-490.0,0.00016767,2]
[365357474,1749617458214,-490.0,0.00016767,2]
[365357475,1749617458224,-490.0,0.00016767,2]
[365357476,1749617458233,-471.44655984,0.00016767,2]
[365357477,1749617458242,-490.0,0.00016767,2]
[365357478,1749617458251,-490.0,0.00016767,2]
[365357479,1749617458261,-333.78563099,0.00016767,2]
[365357480,1749617458271,-490.0,0.00016767,2]
[365357481,1749617458281,-490.0,0.00016767,2]
[365357482,1749617458293,-490.0,0.00016767,2]
[365357483,1749617458302,-151.0,0.00016767,2]
[365357484,1749617458312,-670.18,0.00016767,2]
[365357485,1749617458322,-490.0,0.00016767,2]
[365357486,1749617458332,-490.0,0.00016767,2]
[365357487,1749617458341,-151.0,0.00016767,2]
[365357488,1749617458351,-490.0,0.00016767,2]
[365357489,1749617458360,-208.900931,0.00016767,2]
[365357490,1749617458370,-490.0,0.00016767,2]
[365357491,1749617458380,-490.0,0.00016767,2]
[365357492,1749617458390,-490.0,0.00016767,2]
[365357493,1749617458399,-490.0,0.00016767,2]
[365357494,1749617458409,-487.38385179,0.00016767,2]
[365357495,1749617458419,-490.0,0.00016767,2]
[365357496,1749617458429,-154.83618311,0.00016767,2]
[365357497,1749617458439,-610.54209013,0.00016767,2]
[365357498,1749617458450,-717.732222,0.00016767,2]
[365357499,1749617458462,-560.72689007,0.00016767,2]
[365357500,1749617458472,-614.51448417,0.00016767,2]
[365357501,1749617458482,-490.0,0.00016767,2]
[365357502,1749617458491,-717.732222,0.00016767,2]
[365357503,1749617458501,-490.0,0.00016767,2]
[365357504,1749617458510,-490.0,0.00016767,2]
[365357505,1749617458520,-481.60323449,0.00016767,2]
[365357506,1749617458530,-490.0,0.00016767,2]
[365357507,1749617458542,-490.0,0.00016767,2]
[365357508,1749617458552,-514.84281122,0.00016767,2]
[365357509,1749617458562,-490.9788181,0.00016767,2]
[365357510,1749617458572,-543.23556927,0.00016767,2]
[365357511,1749617458582,-490.0,0.00016767,2]
[365357512,1749617458592,-490.0,0.00016767,2]
[365357513,1749617458602,-490.0,0.00016767,2]
[365357514,1749617458612,-516.23752474,0.00016767,2]
[365357515,1749617458622,-490.0,0.00016767,2]
[365357516,1749617458631,-490.0,0.00016767,2]
[365357517,1749617458641,-1017.3,0.00016767,2]
[365357518,1749617458650,-512.89184505,0.00016767,2]
[365357519,1749617458659,-490.0,0.00016767,2]
[365357520,1749617458669,-151.0,0.00016767,2]
[365357521,1749617458679,-490.0,0.00016767,2]
[365357522,1749617458688,-490.0,0.00016767,2]
[365357523,1749617458698,-556.9048097,0.00016767,2]
[365357524,1749617458707,-490.0,0.00016767,2]
[365357525,1749617458716,-151.0,0.00016767,2]
[365357526,1749617458726,-153.574359,0.00016767,2]
[365357527,1749617458736,-4947.72,0.00016767,2]
[365357528,1749617458746,-490.0,0.00016767,2]
[365357529,1749617458755,-273.50060666,0.00016767,2]
[365357530,1749617458764,-490.0,0.00016767,2]
[365357531,1749617458774,-563.3472589,0.00016767,2]
[365357532,1749617458783,-490.0,0.00016767,2]
[365357533,1749617458792,-490.0,0.00016767,2]
[365357534,1749617458802,-151.0,0.00016767,2]
[365357535,1749617458814,-151.0,0.00016767,2]
[365357536,1749617458824,-490.0,0.00016767,2]
[365357537,1749617458834,-490.0,0.00016767,2]
[365357538,1749617458843,-280.28178952,0.00016767,2]
[365357539,1749617458853,-490.0,0.00016767,2]
[365357540,1749617458862,-364.17362796,0.00016767,2]
[365357541,1749617458872,-490.0,0.00016767,2]
[365357542,1749617458881,-490.0,0.00016767,2]
[365357543,1749617458891,-497.19390263,0.00016767,2]
[365357544,1749617458902,-490.0,0.00016767,2]
[365357545,1749617458911,-490.0,0.00016767,2]
[365357546,1749617458920,-490.0,0.00016767,2]
[365357547,1749617458930,-490.0,0.00016767,2]
[365357548,1749617458939,-184.79091958,0.00016767,2]
[365357549,1749617458949,-490.0,0.00016767,2]
[365357550,1749617458958,-564.36,0.00016767,2]
[365357551,1749617458968,-490.0,0.00016767,2]
[365357552,1749617458978,-152.885981,0.00016767,2]
[365357553,1749617458989,-410.79799531,0.00016767,2]
[365357554,1749617458998,-553.41,0.00016767,2]
[365357555,1749617459007,-454.11342581,0.00016767,2]
[365357556,1749617459017,-490.0,0.00016767,2]
[365357557,1749617459026,-490.0,0.00016767,2]
[365357558,1749617459037,-490.0,0.00016767,2]
[365357559,1749617459047,-425.34793835,0.00016767,2]
[365357560,1749617459056,-587.16293673,0.00016767,2]
[365357561,1749617459065,-490.0,0.00016767,2]
[365357562,1749617459075,-490.0,0.00016767,2]
[365357563,1749617459084,-249.68447951,0.00016767,2]
[365357564,1749617459094,-490.0,0.00016767,2]
[365357565,1749617459104,-1219.3,0.00016767,2]
[365357566,1749617459113,-490.0,0.00016767,2]
[365357567,1749617459124,-570.67747728,0.00016767,2]
[365357568,1749617459134,-164.44422916,0.00016899,2]
[365357569,1749617459143,-297.55720219,0.000169,2]
[365357570,1749617459152,-189.67776087,0.00016931,2]
[365357571,1749617459161,-157.82509791,0.00016931,2]
[365357572,1749617459170,-490.0,0.00016931,2]
[365357573,1749617459179,-445.62423579,0.00016931,2]
[365357574,1749617459189,-342.23937651,0.00016931,2]
[365357575,1749617459199,-466.6302793,0.00016931,2]
[365357576,1749617459208,-197.29182454,0.00016931,2]
[365357577,1749617459217,-303.83356663,0.00016931,2]
[365357578,1749617459226,-490.0,0.00016931,2]
[365357579,1749617459236,-247.28149091,0.00016931,2]
[365357580,1749617459246,-490.0,0.00016931,2]
[365357581,1749617459255,-490.0,0.00016931,2]
[365357582,1749617459269,-490.0,0.00016931,2]
[365357583,1749617459279,-350.68164492,0.00016931,2]
[365357584,1749617459290,-490.0,0.00016931,2]
[365357585,1749617459300,-490.0,0.00016931,2]
[365357586,1749617459310,-490.0,0.00016931,2]
[365357587,1749617459319,-490.0,0.00016931,2]
[365357588,1749617459328,-490.0,0.00016931,2]
[365357589,1749617459338,-470.37011422,0.00016931,2]
[365357590,1749617459347,-460.3957639,0.00016931,2]
[365357591,1749617459357,-242.13372963,0.00016931,2]
[365357592,1749617459493,-490.0,0.00016931,2]
[365357593,1749617459504,-389.05382214,0.00016931,2]
[365357594,1749617459513,-476.71271625,0.00016931,2]
[365357595,1749617459522,-472.0420473,0.00016931,2]
[365357596,1749617459531,-490.0,0.00016931,2]
[365357597,1749617459542,-490.0,0.00016931,2]
[365357598,1749617459551,-405.34121191,0.00016931,2]
[365357599,1749617459561,-490.0,0.00016931,2]
[365357600,1749617459571,-236.95409492,0.00016931,2]
[365357601,1749617459581,-490.0,0.00016931,2]
[365357602,1749617459590,-405.94035243,0.00016931,2]
[365357603,1749617459600,-490.0,0.00016931,2]
[365357604,1749617459609,-490.0,0.00016931,2]
[365357605,1749617459618,-490.0,0.00016931,2]
[365357606,1749617459630,-450.75818429,0.00016931,2]
[365357607,1749617459639,-490.0,0.00016931,2]
[365357608,1749617459649,-490.0,0.00016931,2]
[365357609,1749617459659,-478.72068732,0.00016931,2]
[365357610,1749617459668,-490.0,0.00016931,2]
[365357611,1749617459678,-490.0,0.00016931,2]
[365357612,1749617459688,-490.0,0.00016931,2]
[365357613,1749617459698,-443.02076322,0.00016931,2]
[365357614,1749617459707,-385.29805234,0.00016931,2]
[365357615,1749617459717,-490.0,0.00016931,2]
[365357616,1749617459726,-490.0,0.00016931,2]
[365357617,1749617459736,-334.87540393,0.00016931,2]
[365357618,1749617459746,-194.0395098,0.00016931,2]
[365357619,1749617459755,-448.70429808,0.00016931,2]
[365357620,1749617459765,-490.0,0.00016931,2]
[365357621,1749617459774,-417.45796367,0.00016931,2]
[365357622,1749617459783,-230.31141395,0.00016931,2]
[365357623,1749617459793,-490.0,0.00016931,2]
[365357624,1749617459803,-490.0,0.00016931,2]
[365357625,1749617459816,-490.0,0.00016931,2]
[365357626,1749617459826,-490.0,0.00016931,2]
[365357627,1749617459835,-490.0,0.00016931,2]
[365357628,1749617459845,-523.3634346,0.00016931,2]
[365357629,1749617459857,-484.39428982,0.00016931,2]
[365357630,1749617459867,-474.0516932,0.00016931,2]
[365357631,1749617459876,-490.0,0.00016931,2]
[365357632,1749617459887,-490.0,0.00016931,2]
[365357633,1749617459896,-490.0,0.00016931,2]
[365357634,1749617459906,-490.0,0.00016931,2]
[365357635,1749617459915,-490.0,0.00016931,2]
[365357636,1749617459924,-446.98128477,0.00016931,2]
[365357637,1749617459934,-475.25742807,0.00016931,2]
[365357638,1749617459943,-490.0,0.00016931,2]
[365357639,1749617459953,-490.0,0.00016931,2]
[365357640,1749617459962,-490.0,0.00016931,2]
[365357641,1749617459970,-490.0,0.00016931,2]
[365357642,1749617459978,-485.31249283,0.00016931,2]
[365357643,1749617459986,-455.54855769,0.00016931,2]
[365357644,1749617459994,-490.0,0.00016931,2]
[365357645,1749617460002,-490.0,0.00016931,2]
[365357646,1749617460010,-490.0,0.00016931,2]
[365357647,1749617460018,-490.0,0.00016931,2]
[365357648,1749617460027,-438.29040056,0.00016931,2]
[365357649,1749617460038,-490.0,0.00016931,2]
[365357650,1749617460047,-490.0,0.00016931,2]
[365357651,1749617460057,-311.50507224,0.00016931,2]
[365357652,1749617460067,-490.0,0.00016931,2]
[365357653,1749617460076,-490.0,0.00016931,2]
[365357654,1749617460086,-460.0,0.00016931,2]
[365357655,1749617460096,-490.0,0.00016931,2]
[365357656,1749617460105,-490.0,0.00016931,2]
[365357657,1749617460115,-490.0,0.00016931,2]
[365357658,1749617460124,-263.93393173,0.00016931,2]
[365357659,1749617460134,-499.50283087,0.00016931,2]
[365357660,1749617460144,-531.66440131,0.00016931,2]
[365357661,1749617460153,-470.71143555,0.00016931,2]
[365357662,1749617460163,-438.00598852,0.00016931,2]
[365357663,1749617460172,-463.21648572,0.00016931,2]
[365357664,1749617460182,-490.0,0.00016931,2]
[365357665,1749617460192,-490.0,0.00016931,2]
[365357666,1749617460201,-438.80997529,0.00016931,2]
[365357667,1749617460211,-545.01,0.00016931,2]
[365357668,1749617460220,-428.52568298,0.00016931,2]
[365357669,1749617460229,-490.0,0.00016931,2]
[365357670,1749617460240,-428.22906636,0.00016931,2]
[365357671,1749617460255,-490.0,0.00016931,2]
[365357672,1749617460264,-490.0,0.00016931,2]
[365357673,1749617460274,-456.20307154,0.00016931,2]
[365357674,1749617460283,-606.99448151,0.00016931,2]
[365357675,1749617460292,-490.0,0.00016931,2]
[365357676,1749617460301,-490.0,0.00016931,2]
[365357677,1749617460311,-490.0,0.00016931,2]
[365357678,1749617460321,-490.0,0.00016931,2]
[365357679,1749617460330,-445.72185897,0.00016931,2]
[365357680,1749617460340,-490.0,0.00016931,2]
[365357681,1749617460350,-222.21640219,0.00016931,2]
[365357682,1749617460359,-514.48738646,0.00016931,2]
[365357683,1749617460369,-383.57937609,0.00016931,2]
[365357684,1749617460378,-230.19782693,0.00016931,2]
[365357685,1749617460388,-409.41080861,0.00016931,2]
[365357686,1749617460397,-164.93209484,0.00016931,2]
[365357687,1749617460406,-503.92028185,0.00016931,2]
[365357688,1749617460415,-490.0,0.00016931,2]
[365357689,1749617460425,-492.08042917,0.00016931,2]
[365357690,1749617460434,-490.0,0.00016931,2]
[365357691,1749617460443,-547.03025893,0.00016931,2]
[365357692,1749617460453,-613.24307754,0.00016931,2]
[365357693,1749617460462,-490.0,0.00016931,2]
[365357694,1749617460472,-490.0,0.00016931,2]
[365357695,1749617460482,-521.49342663,0.00016931,2]
[365357696,1749617460494,-490.0,0.00016931,2]
[365357697,1749617460505,-490.0,0.00016931,2]
[365357698,1749617460514,-450.0,0.00016931,2]
[365357699,1749617460523,-490.0,0.00016931,2]
[365357700,1749617460533,-490.0,0.00016931,2]
[365357701,1749617460545,-490.0,0.00016931,2]
[365357702,1749617460556,-291.68610013,0.00016931,2]
[365357703,1749617460566,-490.0,0.00016931,2]
[365357704,1749617460576,-490.0,0.00016931,2]
[365357705,1749617460586,-182.47561372,0.00016931,2]
[365357706,1749617460597,-490.0,0.00016931,2]
[365357707,1749617460608,-490.0,0.00016931,2]
[365357708,1749617460618,-490.0,0.00016931,2]
[365357709,1749617460629,-490.0,0.00016931,2]
[365357710,1749617460639,-572.29302799,0.00016931,2]
[365357711,1749617460649,-490.0,0.00016931,2]
[365357712,1749617460659,-490.0,0.00016931,2]
[365357713,1749617460669,-427.21112829,0.00016931,2]
[365357714,1749617460679,-490.0,0.00016931,2]
[365357715,1749617460689,-446.3209466,0.00016931,2]
[365357716,1749617460699,-490.0,0.00016931,2]
[365357717,1749617460709,-490.0,0.00016931,2]
[365357718,1749617460718,-256.22200098,0.00016931,2]
[365357719,1749617460727,-450.60301264,0.00016931,2]
[365357720,1749617460737,-277.47180517,0.00016931,2]
[365357721,1749617460747,-468.26100232,0.00016931,2]
[365357722,1749617460757,-249.98650563,0.00016931,2]
[365357723,1749617460767,-490.0,0.00016931,2]
[365357724,1749617460777,-490.0,0.00016931,2]
[365357725,1749617460790,-490.0,0.00016931,2]
[365357726,1749617460800,-490.0,0.00016931,2]
[365357727,1749617460812,-490.0,0.00016931,2]
[365357728,1749617460822,-490.0,0.00016931,2]
[365357729,1749617460832,-424.54369969,0.00016931,2]
[365357730,1749617460841,-352.50901399,0.00016931,2]
[365357731,1749617460852,-375.65342271,0.00016931,2]
[365357732,1749617460862,-490.0,0.00016931,2]
[365357733,1749617460872,-553.67713864,0.00016931,2]
[365357734,1749617460882,-304.02741727,0.00016931,2]
[365357735,1749617460893,-490.0,0.00016931,2]
[365357736,1749617460903,-490.0,0.00016931,2]
[365357737,1749617460914,-490.0,0.00016931,2]
[365357738,1749617460923,-490.0,0.00016931,2]
[365357739,1749617460933,-490.0,0.00016931,2]
[365357740,1749617460943,-521.01,0.00016931,2]
[365357741,1749617460952,-490.0,0.00016931,2]
[365357742,1749617460961,-490.0,0.00016931,2]
[365357743,1749617460971,-322.3574358,0.00016931,2]
[365357744,1749617460981,-606.15833085,0.00016931,2]
[365357745,1749617460991,-810.68,0.00016931,2]
[365357746,1749617461000,-490.0,0.00016931,2]
[365357747,1749617461010,-490.0,0.00016931,2]
[365357748,1749617461021,-490.0,0.00016931,2]
[365357749,1749617461030,-490.0,0.00016931,2]
[365357750,1749617461044,-490.0,0.00016931,2]
[365357751,1749617461054,-490.0,0.00016931,2]
[365357752,1749617461063,-490.0,0.00016931,2]
[365357753,1749617461073,-490.0,0.00016931,2]
[365357754,1749617461082,-519.85688672,0.00016931,2]
[365357755,1749617461091,-490.0,0.00016931,2]
[365357756,1749617461100,-490.0,0.00016931,2]
[365357757,1749617461110,-490.0,0.00016931,2]
[365357758,1749617461120,-150.36743464,0.00016931,2]
[365357759,1749617461130,-490.0,0.00016931,2]
[365357760,1749617461139,-490.0,0.00016931,2]
[365357761,1749617461149,-313.57013731,0.00016931,2]
[365357762,1749617461160,-490.0,0.00016931,2]
[365357763,1749617461170,-490.0,0.00016931,2]
[365357764,1749617461180,-370.21992115,0.00016931,2]
[365357765,1749617461190,-615.22751504,0.00016931,2]
[365357766,1749617461199,-490.0,0.00016931,2]
[365357767,1749617461208,-670.18,0.00016931,2]
[365357768,1749617461219,-490.0,0.00016931,2]
[365357769,1749617461228,-490.0,0.00016931,2]
[365357770,1749617461237,-490.0,0.00016931,2]
[365357771,1749617461246,-548.47926888,0.00016931,2]
[365357772,1749617461256,-490.0,0.00016931,2]
[365357773,1749617461266,-490.99772679,0.00016931,2]
[365357774,1749617461275,-490.0,0.00016931,2]
[365357775,1749617461289,-490.0,0.00016931,2]
[365357776,1749617461299,-490.0,0.00016931,2]
[365357777,1749617461308,-490.0,0.00016931,2]
[365357778,1749617461318,-490.0,0.00016931,2]
[365357779,1749617461327,-490.0,0.00016931,2]
[365357780,1749617461337,-490.0,0.00016931,2]
[365357781,1749617461346,-311.83988331,0.00016931,2]
[365357782,1749617461355,-479.30547941,0.00016931,2]
[365357783,1749617461365,-469.6949878,0.00016931,2]
[365357784,1749617461374,-490.0,0.00016931,2]
[365357785,1749617461383,-490.0,0.00016931,2]
[365357786,1749617461393,-1017.3,0.00016931,2]
[365357787,1749617461402,-490.0,0.00016931,2]
[365357788,1749617461412,-490.0,0.00016931,2]
[365357789,1749617461421,-416.37580811,0.00016931,2]
[365357790,1749617461431,-282.54800771,0.00016931,2]
[365357791,1749617461440,-4947.72,0.00016931,2]
[365357792,1749617461450,-490.0,0.00016931,2]
[365357793,1749617461459,-490.0,0.00016931,2]
[365357794,1749617461468,-490.0,0.00016931,2]
[365357795,1749617461478,-490.0,0.00016931,2]
[365357796,1749617461487,-490.0,0.00016931,2]
[365357797,1749617461496,-364.66,0.00016931,2]
[365357798,1749617461506,-558.06997418,0.00016931,2]
[365357799,1749617461517,-490.0,0.00016931,2]
[365357800,1749617461526,-490.0,0.00016931,2]
[365357801,1749617461537,-490.0,0.00016931,2]
[365357802,1749617461546,-249.89869211,0.00016931,2]
[365357803,1749617461556,-490.0,0.00016931,2]
[365357804,1749617461565,-490.0,0.00016931,2]
[365357805,1749617461575,-490.0,0.00016931,2]
[365357806,1749617461585,-490.0,0.00016931,2]
[365357807,1749617461594,-504.79366019,0.00016931,2]
[365357808,1749617461604,-490.0,0.00016931,2]
[365357809,1749617461612,-479.28971529,0.00016931,2]
[365357810,1749617461621,-257.98371089,0.00016931,2]
[365357811,1749617461631,-311.07753421,0.00016931,2]
[365357812,1749617461640,-490.0,0.00016931,2]
[365357813,1749617461651,-1219.3,0.00016931,2]
[365357814,1749617461660,-447.24900552,0.00016931,2]
[365357815,1749617461670,-100402.22811121,0.00016999,2]
[365357816,1749617461679,-152.811637,0.00016999,2]
[365357817,1749617461688,-151.0,0.00016999,2]
[365357818,1749617461698,-277.110207,0.00016999,2]
[365357819,1749617461708,-717.732222,0.00016999,2]
[365357820,1749617461717,-717.732222,0.00016999,2]
[365357821,1749617461727,-151.0,0.00016999,2]
[365357822,1749617461737,-151.0,0.00016999,2]
[365357823,1749617461747,-184.665122,0.00016999,2]
[365357824,1749617461756,-286.449093,0.00016999,2]
[365357825,1749617461765,-153.0,0.00017,2]
[365357826,1749617461775,-297.55720198,0.00017003,2]
[365357827,1749617461784,-500.0,0.00017021,2]
[365357828,1749617461795,-505.4414831,0.00017021,2]
[365357829,1749617461804,-833.29909032,0.00017048,2]
[365357830,1749617461816,-384.84897597,0.00017095,2]
[365357831,1749617461958,-466.62736514,0.00017095,2]
[365357832,1749617461969,-490.0,0.00017095,2]
[365357833,1749617461979,-490.0,0.00017095,2]
[365357834,1749617461988,-509.13739508,0.00017095,2]
[365357835,1749617461998,-490.0,0.00017095,2]
[365357836,1749617462007,-383.77813257,0.00017095,2]
[365357837,1749617462017,-403.72683348,0.00017095,2]
[365357838,1749617462026,-490.0,0.00017095,2]
[365357839,1749617462037,-490.0,0.00017095,2]
[365357840,1749617462046,-490.0,0.00017095,2]
[365357841,1749617462056,-440.38919773,0.00017095,2]
[365357842,1749617462065,-161.62579527,0.00017095,2]
[365357843,1749617462075,-417.32975254,0.00017095,2]
[365357844,1749617462084,-490.0,0.00017095,2]
[365357845,1749617462093,-490.0,0.00017095,2]
[365357846,1749617462102,-490.0,0.00017095,2]
[365357847,1749617462112,-490.0,0.00017095,2]
[365357848,1749617462122,-490.0,0.00017095,2]
[365357849,1749617462132,-436.34668094,0.00017095,2]
[365357850,1749617462142,-490.0,0.00017095,2]
[365357851,1749617462151,-460.0,0.00017095,2]
[365357852,1749617462160,-339.54955283,0.00017095,2]
[365357853,1749617462170,-330.62211642,0.00017095,2]
[365357854,1749617462179,-484.72391673,0.00017095,2]
[365357855,1749617462188,-486.12870847,0.00017095,2]
[365357856,1749617462198,-234.53858746,0.00017095,2]
[365357857,1749617462207,-490.0,0.00017095,2]
[365357858,1749617462217,-490.0,0.00017095,2]
[365357859,1749617462231,-473.70291513,0.00017095,2]
[365357860,1749617462240,-490.0,0.00017095,2]
[365357861,1749617462250,-407.89490372,0.00017095,2]
[365357862,1749617462259,-490.0,0.00017095,2]
[365357863,1749617462268,-182.60561691,0.00017095,2]
[365357864,1749617462277,-490.0,0.00017095,2]
[365357865,1749617462287,-490.0,0.00017095,2]
[365357866,1749617462296,-472.90434543,0.00017095,2]
[365357867,1749617462306,-490.0,0.00017095,2]
[365357868,1749617462315,-490.0,0.00017095,2]
[365357869,1749617462324,-490.0,0.00017095,2]
[365357870,1749617462333,-490.0,0.00017095,2]
[365357871,1749617462342,-490.0,0.00017095,2]
[365357872,1749617462351,-398.79837407,0.00017095,2]
[365357873,1749617462361,-490.0,0.00017095,2]
[365357874,1749617462371,-490.0,0.00017095,2]
[365357875,1749617462381,-490.0,0.00017095,2]
[365357876,1749617462391,-490.0,0.00017095,2]
[365357877,1749617462400,-490.0,0.00017095,2]
[365357878,1749617462410,-490.0,0.00017095,2]
[365357879,1749617462420,-467.10147697,0.00017095,2]
[365357880,1749617462429,-490.0,0.00017095,2]
[365357881,1749617462439,-490.0,0.00017095,2]
[365357882,1749617462448,-564.30687753,0.00017095,2]
[365357883,1749617462458,-545.01,0.00017095,2]
[365357884,1749617462467,-490.0,0.00017095,2]
[365357885,1749617462476,-490.0,0.00017095,2]
[365357886,1749617462486,-490.0,0.00017095,2]
[365357887,1749617462495,-151.0,0.00017095,2]